Cogmind - Beta 14 @@@ ROGUE MODE // 2025.03.11 @ 00:01:35 Player: puppuppit Result: Destroyed by V0-BV3(R) with Subdweller Laser Performance ------------- Evolutions (0) 0 Regions Visited (2) 400 Robots Destroyed (32) 160 Value Destroyed (567) 567 Prototype IDs (0) 0 Alien Tech Used (0) 0 Bonus (0) 0 TOTAL SCORE: 1127 Bonus ------- None Cogmind --------- Core Integrity 0/250 Matter 60/300 Energy 100/100 System Corruption 0% Temperature Cool (6) Movement Rolling (140) Ox4 Location -10/Subcaves Parts ------- > --- POWER (1) -------- (None) > --- PROPULSION (2) --- Wheel Wheel > --- UTILITY (2) ------ Huge Storage Unit > --- WEAPON (2) ------- Light Assault Rifle Battle Cannon > --- INVENTORY (25) --- Subdweller Power Source Subdweller Power Source Subdweller Power Source Wheel Subdweller Monowheel Subdweller Monowheel Subdweller Monowheel Medium Matter Pod (100) Subdweller Optics Subdweller Optics Subdweller Optics Propulsion Shielding Backup Plating I Scrap Shield Subdweller Laser Subdweller Beam Cannon Light Assault Rifle Light Assault Rifle Subdweller Machine Gun Subdweller Machine Gun Mining Laser Peak State ------------ > --- POWER ------------ Light Ion Engine > --- PROPULSION ------- Wheel Compact Wheel > --- UTILITY ---------- Huge Storage Unit Makeshift Light Armor Plating > --- WEAPON ----------- Light Assault Rifle Subdweller Shrapnel Launcher > --- INVENTORY -------- Subdweller Power Source Subdweller Power Source Subdweller Power Source Wheel Wheel Subdweller Monowheel Subdweller Monowheel Subdweller Monowheel Medium Matter Pod Subdweller Optics Subdweller Optics Subdweller Optics Propulsion Shielding Backup Plating I Scrap Shield Subdweller Laser Subdweller Beam Cannon Light Assault Rifle Light Assault Rifle Subdweller Machine Gun Subdweller Machine Gun Battle Cannon Grenade Launcher Mining Laser [Rating: 15] Favorites ----------- Power Ion Engine Engine Ion Engine Propulsion Wheel Wheel Wheel Utility Huge Storage Unit Device Improved Terrain Scanner Storage Huge Storage Unit Protection Makeshift Light Armor Plating Weapon Light Assault Rifle Energy Cannon Subdweller Beam Cannon Ballistic Gun Light Assault Rifle Ballistic Cannon Battle Cannon Launcher Grenade Launcher Special Weapon Mining Laser Build | -11 -10 -10 ------- Run | Yrd Mat Sub Slots Evolved . | . . . Power . | . . . Propulsion . | . . . Utility . | . . . Weapon . | . . . Parts Attached 43 | 7 13 23 Power 2 | 1 . 1 Engine 2 | 1 . 1 Core . | . . . Reactor . | . . . Propulsion 8 | 2 3 3 Treads . | . . . Leg . | . . . Wheel 8 | 2 3 3 Hover . | . . . Flight . | . . . Utility 12 | 2 4 6 Device 4 | 1 1 2 Storage 2 | 1 1 . Processor . | . . . Hackware . | . . . Protection 6 | . 2 4 Artifact . | . . . Weapon 21 | 2 6 13 Energy Gun . | . . . Energy Cannon 1 | . . 1 Ballistic Gun 11 | 2 3 6 Ballistic Cannon 1 | . . 1 Launcher 6 | . 2 4 Special Weapon 2 | . 1 1 Impact Weapon . | . . . Slashing Weapon . | . . . Piercing Weapon . | . . . Special Melee Weapon . | . . . Unidentified Prototypes . | . . . Parts Lost 9 | . 1 8 Power 1 | . . 1 Propulsion 2 | . 1 1 Utility 3 | . . 3 Weapon 3 | . . 3 Highest Loss Streak 5 | . 1 5 To Critical Strikes . | . . . Average Slot Usage (%) 99 | . 99 99 Engine 13 | . 14 13 Wheel 27 | . 27 27 Device 3 | . 1 5 Storage 14 | . 14 14 Protection 10 | . 12 8 Energy Cannon 2 | . . 5 Ballistic Gun 22 | . 27 18 Launcher 1 | . . 1 Special Weapon 1 | . . 2 Peak Build Rating 15 | 8 9 15 Average Rating 10 | 6 8 12 On Entrance 5 | . 8 9 Naked Turns . | . . . Heaviest Build 98 | 13 90 98 Greatest Support 26 | 20 26 26 Greatest Overweight (x) 8 | . 4 8 Average Overweight (x) 2 | . 2 3 Largest Inventory Capacity 25 | 8 25 25 Average Capacity 22 | 7 22 25 Most Carried 25 | 8 18 25 Average Carried 17 | 1 13 22 Final Capacity 25 | 8 25 25 Final Carried 22 | 8 18 22 Class Distribution -------------------- 94% | Mutant 5% | Scavenger-Mutant Dominant Class ---------------- Mutant | -10/Materials Mutant | -10/Subcaves Resources | -11 -10 -10 ----------- Run | Yrd Mat Sub Matter Collected 1003 | 372 242 389 Remotely 224 | 224 . . Salvage Created 783 | 168 405 210 Parts 59 | 17 28 14 Haulers Intercepted 1 | . 1 . Recyclers Shooed 3 | . 3 . Parts Field Recycled . | . . . Retrieved Matter . | . . . Parts Self-Destructed 2 | . . 2 Prevented . | . . . Kills | -11 -10 -10 ------- Run | Yrd Mat Sub Combat Hostiles Destroyed 18 | . 11 7 Guns 7 | . 5 2 Cannons 2 | . . 2 AOE 9 | . 6 3 Classes Destroyed 10 | 3 5 2 Worker 3 | 2 1 . Tunneler 4 | 3 1 . Hauler 1 | . 1 . Recycler 3 | 1 2 . Operator 2 | . 2 . Watcher 1 | . 1 . Swarmer 9 | . 9 . Grunt 2 | . 2 . Artisan 1 | . . 1 Subdweller 7 | . . 7 Best Kill Streak 4 | 3 4 2 Combat Bots Only 3 | . 3 2 Max Kills in Single Turn 2 | 1 2 1 Gunslinging . | . . . Exploded 1 | . 1 1 Melee . | . . . Uniques/NPCs Destroyed . | . . . Combat | -11 -10 -10 -------- Run | Yrd Mat Sub Hostile Shots Fired 93 | . 33 60 Missed 31 | . 13 18 Damage Taken 1087 | . 216 871 Core 272 | . 25 247 Absorbed by Shields . | . . . Core Remaining (%) 100 | 100 . . Volleys Fired 127 | 29 63 35 Largest 2 | 2 2 2 Hottest 100 | 40 100 100 Shots Fired 240 | 58 114 68 Gun 198 | 58 102 38 Cannon 12 | . . 12 Launcher 26 | . 9 17 Special 4 | . 3 1 Kinetic 211 | 58 102 51 Thermal 11 | . 3 8 Explosive 18 | . 9 9 Electromagnetic . | . . . Robot Hit Streak 15 | 12 8 15 Robot Miss Streak 7 | 2 7 4 Penetration Max . | . . . Secondary Targets . | . . . Shots Hit Robots 142 | 36 60 46 Core Hits 65 | 12 35 18 Critical Kills . | . . . Critical Parts Destroyed . | . . . Critical Strikes 1 | . . 1 Destroy 1 | . . 1 Melee Attacks . | . . . Impact . | . . . Slashing . | . . . Piercing . | . . . Sneak Attacks . | . . . Combat Hostiles . | . . . Follow-up Attacks . | . . . Damage Inflicted 2403 | 227 971 1205 Guns 892 | 227 465 200 Cannons 237 | . . 237 Explosions 1274 | . 506 768 Melee . | . . . Ramming . | . . . Kinetic 1333 | 227 465 641 Thermal 192 | . . 192 Explosive 878 | . 506 372 Electromagnetic . | . . . Impact . | . . . Slashing . | . . . Piercing . | . . . Highest Corruption . | . . . Average Corruption . | . . . Corruption Purged . | . . . Corruption Blocked . | . . . Overload Shots . | . . . Overflow Damage 125 | . 96 29 Projectiles 6 | . . 6 Explosions 119 | . 96 23 Melee . | . . . Knockbacks 1 | . . 1 Impact . | . . . Kinetic 1 | . . 1 Secondary . | . . . Self-Inflicted Damage 39 | . 39 . Shots 2 | . 2 . Rammed . | . . . Targets Rammed . | . . . Kicked . | . . . Crushed . | . . . Highest Temperature 58 | . 29 58 Average Temperature 14 | . 10 22 Received Heat Transfer 150 | . 42 108 Siege Activations . | . . . Robots Corrupted . | . . . Combat Hostiles . | . . . Parts Fried . | . . . Impact Corruptions . | . . . Robots Melted . | . . . Combat Hostiles . | . . . Parts Melted . | . . . Heat Transferred 259 | . . 259 Parts Sabotaged . | . . . Parts Stolen . | . . . Parts Stripped . | . . . Power Chain Reactions . | . . . Alert | -11 -10 -10 ------- Run | Yrd Mat Sub Peak Influence 219 | 30 219 . Initial 19 | . 19 . Average 109 | 13 124 . Maximum Alert Level 1 | . 1 . Low Security (%) 91 | 100 90 . Level 1 8 | . 9 . Level 2 . | . . . Level 3 . | . . . Level 4 . | . . . Level 5 . | . . . High Security . | . . . Max Security . | . . . Squads Dispatched 1 | . 1 . Investigation . | . . . Extermination . | . . . Reinforcement 1 | . 1 . Assault . | . . . Garrison . | . . . Intercept . | . . . Searches Triggered . | . . . Construction Impeded . | . . . Haulers Reinforced . | . . . Active Scanning Responses . | . . . Cargo Convoy Interrupts . | . . . Stealth | -11 -10 -10 --------- Run | Yrd Mat Sub Distress Signals . | . . . Communications Jammed . | . . . Distress Signals . | . . . Times Spotted 29 | . 20 9 Peak Tracking Total 4 | . 4 2 Tactical Retreats 2 | . 2 . Traps | -11 -10 -10 ------- Run | Yrd Mat Sub Traps Triggered . | . . . Indirectly . | . . . Trap Hack Attempts . | . . . Triggered . | . . . Disarmed . | . . . Reprogrammed . | . . . Reused . | . . . Traps Extracted . | . . . Installed . | . . . Triggered . | . . . Machines | -11 -10 -10 ---------- Run | Yrd Mat Sub Machines Disabled 3 | . 3 . Max in Single Turn 2 | . 2 . Machines Repaired . | . . . Machines Dismantled . | . . . Machines Sabotaged . | . . . Overloaded Fab Kills . | . . . Hacking | -11 -10 -10 --------- Run | Yrd Mat Sub Machines Accessed 9 | . 9 . Terminals 7 | . 7 . Fabricators . | . . . Repair Stations 1 | . 1 . Recycling Units 1 | . 1 . Scanalyzers . | . . . Garrison Access . | . . . Total Hacks 31 | . 31 . Successful 14 | . 14 . Failed 16 | . 16 . Catastrophic 2 | . 2 . Database Lockouts 1 | . 1 . Manual 18 | . 18 . Terminals 28 | . 28 . Fabricators . | . . . Repair Stations 2 | . 2 . Recycling Units 1 | . 1 . Scanalyzers . | . . . Garrison Access . | . . . Terminal Hacks 5 | . 5 . Robot Analysis 4 | . 4 . Terminal Index 1 | . 1 . Fabricator Hacks . | . . . Repair Station Hacks 1 | . 1 . Refit 1 | . 1 . Recycling Unit Hacks 1 | . 1 . Retrieve Components 1 | . 1 . Scanalyzer . | . . . Garrison Access Hacks . | . . . Unauthorized Hacks 7 | . 7 . Terminals 7 | . 7 . Botnet 7 | . 7 . Fabricators . | . . . Repair Stations . | . . . Recycling Units . | . . . Scanalyzers . | . . . Garrison Access . | . . . Data Cores Recovered 1 | . 1 . Used . | . . . Hacking Detections 7 | . 7 . Full Trace Events 2 | . 2 . Feedback Events . | . . . Feedback Blocked . | . . . Robot Schematics Acquired . | . . . Robots Built . | . . . Authchips . | . . . Time . | . . . Total Robot Build Rating . | . . . Part Schematics Acquired . | . . . Parts Built . | . . . Authchips . | . . . Time . | . . . Total Part Build Rating . | . . . Parts Repaired . | . . . Time . | . . . Parts Recycled . | . . . Recycled Matter . | . . . Retrieved Matter . | . . . Retrieved Components 2 | . 2 . Parts Scanalyzed . | . . . Part Schematics Acquired . | . . . Parts Damaged . | . . . Bothacking | -11 -10 -10 ------------ Run | Yrd Mat Sub Used RIF Installer . | . . . Robots Hacked . | . . . Non-combat . | . . . Combat . | . . . Robot Hacks Applied . | . . . Relay Couplers Released . | . . . Fabnet Peak Effective % . | . . . Robots Rewired . | . . . Allies Hacked . | . . . Hacks Repelled . | . . . Allies | -11 -10 -10 -------- Run | Yrd Mat Sub Total Allies . | . . . Largest Group . | . . . Highest-Rated Group . | . . . Highest-Rated Ally . | . . . Total Orders . | . . . Ally Attacks . | . . . Total Damage . | . . . Kills . | . . . Allies Corrupted . | . . . Allies Melted . | . . . Intel | -11 -10 -10 ------- Run | Yrd Mat Sub Robot Analysis Total 4 | . 4 . Derelict Logs Recovered . | . . . Drone Launches . | . . . Drone Recoveries . | . . . Exploration | -11 -10 -10 ------------- Run | Yrd Mat Sub Turns Passed 2268 | 144 917 1207 Spaces Moved 1402 | 63 573 766 Core 2 | 2 . . Treads . | . . . Legs . | . . . Wheels 1400 | 61 573 766 Hover . | . . . Flight . | . . . Fastest Speed 50 | 50 80 135 Average Speed 127 | 79 121 135 Slowest Speed 200 | 80 140 200 Overloaded Moves . | . . . Propulsion Burnouts . | . . . Robots Hopped . | . . . Cave-ins Triggered . | . . . Exploration Rate (%) 44 | 3 78 52 Regions Visited 2 Branch Regions 1 Pre-discovered Areas 1 | . . 1 Known Exits Taken . | . . . Unknown Exits Taken 2 | 1 1 . Scrap Searched 7 | . . 7 Spaces Dug 4 | . 4 . Terrain Destroyed 165 | . 55 110 Melee . | . . . Projectile . | . . . AOE 165 | . 55 110 Terrain Rammed . | . . . Walls Destroyed . | . . . Machines Disabled . | . . . Actions | -11 -10 -10 --------- Run | Yrd Mat Sub Total 1672 | 107 692 873 Wait 38 | . 19 19 Move 1400 | 62 572 766 Hop . | . . . Pick Up 43 | 9 15 19 Fast Attach 7 | 6 1 . Attach 8 | 1 1 6 Detach 1 | . 1 . Swap 28 | . 11 17 Drop 20 | . 9 11 Fire 127 | 29 63 35 Melee . | . . . Ram . | . . . Kick . | . . . Crush . | . . . Escape Stasis . | . . . Rewire . | . . . Trap . | . . . Miscellaneous . | . . . Route ------- -11/Scrapyard -10/Materials (discovered 3 exits: [*Mat] / [*Min] / [*Sub]) -10/Subcaves History --------- Turn | Location | Event 15 | -11/Scrapyard | Discovered new exit (range 16) 145 | -11/Scrapyard | Entered Materials 318 | -10/Materials | Build established: Mutant 483 | -10/Materials | Discovered new exit (range 16) 567 | -10/Materials | Central database locked down 741 | -10/Materials | Discovered new exit (range 16) 1056 | -10/Materials | Discovered new exit (range 3) 1062 | -10/Materials | Entered Subcaves 1597 | -10/Subcaves | Disturbed a concealed Subdweller 1855 | -10/Subcaves | Learned location of Zion (-6) 1855 | -10/Subcaves | Met a Zionite searching for "candidates" 2207 | -10/Subcaves | Core integrity fell below 50% 2232 | -10/Subcaves | Core integrity fell below 20% 2269 | -10/Subcaves | Destroyed by V0-BV3(R) with Subdweller Laser Last Messages --------------- 02139_ Dropped Lgt. Assault Rifle. 02142_ Acquired Battle Cannon. 02145_ Subatomizers dissect the Flamer. 02194_ Destroyed Sub. Optics. 02195_ 0D-YOP(R): "SLEEPOVER!" 02199_ Destroyed Scrap Shield. 02205_ VZ-AJF(R) destroyed. 02208_ Lgt. Ion Engine destroyed. 02212_ Sub. Shrapnel Launcher destroyed. 02217_ 0D-YOP(R) destroyed. 02219_ Com. Wheel destroyed. 02233_ Acquired 17 matter. 02238_ The unstable cave ceiling collapses. 02246_ Grenade Launcher destroyed. 02250_ QF-87D(R) knocked back. 02257_ The unstable cave ceiling collapses. V0-BV3(R) emerges from concealment. 02262_ Mak. Light Armor Plating destroyed. 02263_ The unstable cave ceiling collapses. 02265_ QF-87D(R) suffers critical hit (Destroy). Map ----- +----------------------------------------------------+ | ##### #??# ##?????????? | | ?#??## #??### ????????? | | ???#?## ##???## ### ???????? | | #????## ##???## ### ???????? | | #??#?# ##??# ###### ???????? | | #???## ##??### #### ## ???????? | | ???### ##????# """ ##????????????????? | | ???## #?????## #####????????????????? | | ????# #????## "" ##???????????????? | | #???# #????# ????????????????? | | ?#??## #????## " ????????????????? | | ?????## #?????# % & "###??????????????? | | ???#??## #????## "" ##?????????????? | | #? ##### %######[= ## ##????????????? | | #? """"""" | # ##???????????? | | ## "" " ! # #???????????? | | #"" "" " ## # ##???????????? | | " """ "### # # ##????????????? | | "" ###"### # ##### #RR #?????????????? | | """"" ""# #???## ! * ##???? ???????? | | """"""" #????## & # ?????? | | ###### " """# ##### # ?????? | | ##?### """#" ## ????? | | ##?# """" ?????? | | #?# " "" # # #?????? | | ##?# & # ##" #####@### #?????? | | ##??# # ##########???# ## #?????? | | #???# # & # ##?????????# ## ## ??????? | | #???# & ### #????? ## #? ??????? | | ###### #????? ### #?# ??????? | | # # #????? #?# #??## ???????? | | ### ## #? #? #????## ????????? | | # #?## ## #?? ????????????????? | | ##### ##?? ## #?? ????????????????? | | ##### #??? ## ##?? ????????????????? | | #???? ##? #????? ????????????????? | | #????? #??##????????????????????????? | | ######??????##????????????????????????????? | | ##### ##?????????????????????????????????????????? | | ????###??????????????????????????????????????????? | | ?????????????????????????????????????????????????? | | ?????????????????????????????????????????????????? | | ?????????????????????????????????????????????????? | | ?????????????????????????????????????????????????? | | ?????????????????????????????????????????????????? | | ?????????????????????????????????????????????????? | | ?????????????????????????????????????????????????? | | ?????????????????????????????????????????????????? | | ?????????????????????????????????????????????????? | | ?????????????????????????????????????????????????? | +----------------------------------------------------+ Best States ------------- Heat Dissipation 25 Energy Generation 10 Energy Capacity 250 Matter Stores 300 Matter Capacity 300 Sight Range 16 Terrain Scan Range 16 Terrain Scan Density 10 Armor Coverage 150 Propulsion Shielding 33 Evasion (%) 44 Item Schematics ----------------- None Robot Schematics ------------------ None Fabricated ------------ Nothing Alien Tech Used ----------------- None Achievements -------------- None Challenges ------------ None Game ------ Seed TachyonArcCoupler Manual? 0 Play Time 00:16:56 Cumulative 190.9 hours Start 2025.03.10 @ 23:45:46 End 2025.03.11 @ 00:01:35 Sessions 1 Manual Loads 0 Difficulty Rogue Special Mode None Game No. 104 Rogue 104 Adventurer 0 Explorer 0 Win Type - Total 3 Types 1/0/1/1/0/0/0/0/0 Lore% 62 Gallery% 65 Achievement% 60 Wizard Run 0 Options --------- Layout 0 ASCII 0 Keyboard 1 Movement Vi Keybinds 0 Fullscreen 1 Font 12/Proggy Map View 83x54 Zoom Use 0% Tactical HUD 1 Map Filters NONE Filters NONE Steam 0 RUN: def9ce4b-e2a1-4b81-880c-b25446ef6e1b